fUST/lending_fUST_20251124
["ID","MTS","AMOUNT","RATE_DAILY","PERIOD"]
[394743068,1763925041115,-520.906329,0.00013699,2]
[394743069,1763925041124,-520.906329,0.00013699,2]
[394743070,1763925041133,-520.906329,0.00013699,2]
[394743071,1763925041142,-520.906329,0.00013699,2]
[394743072,1763925041151,-520.906329,0.00013699,2]
[394743073,1763925041160,-520.906329,0.00013699,2]
[394743074,1763925041169,-520.906329,0.00013699,2]
[394743075,1763925041178,-520.906329,0.00013699,2]
[394743076,1763925041187,-520.906329,0.00013699,2]
[394743077,1763925041197,-520.906329,0.00013699,2]
[394743078,1763925041206,-520.906329,0.00013699,2]
[394743079,1763925041216,-151.0,0.00013699,2]
[394743080,1763925041225,-477.200149,0.00013699,2]
[394743081,1763925041234,-151.0,0.00013699,2]
[394743082,1763925041244,-151.0,0.00013699,2]
[394743083,1763925041253,-159.525072,0.00013699,2]
[394743084,1763925041262,-243.722601,0.00013699,2]
[394743085,1763925041271,-243.722601,0.00013699,2]
[394743086,1763925041281,-243.722601,0.00013699,2]
[394743087,1763925041290,-243.722601,0.00013699,2]
[394743088,1763925041300,-243.722601,0.00013699,2]
[394743089,1763925041309,-243.722601,0.00013699,2]
[394743090,1763925041319,-243.722601,0.00013699,2]
[394743091,1763925041328,-243.722601,0.00013699,2]
[394743092,1763925041337,-243.722601,0.00013699,2]
[394743093,1763925041346,-243.722601,0.00013699,2]
[394743094,1763925041489,-243.722601,0.00013699,2]
[394743095,1763925041499,-243.722601,0.00013699,2]
[394743096,1763925041508,-243.722601,0.00013699,2]
[394743097,1763925041518,-243.722601,0.00013699,2]
[394743098,1763925041527,-243.722601,0.00013699,2]
[394743099,1763925041536,-243.722601,0.00013699,2]
[394743100,1763925041545,-213.892558,0.00013699,2]
[394743101,1763925041554,-213.892558,0.00013699,2]
[394743102,1763925041563,-213.892558,0.00013699,2]
[394743103,1763925041572,-213.892558,0.00013699,2]
[394743104,1763925041582,-213.892558,0.00013699,2]
[394743105,1763925041591,-213.892558,0.00013699,2]
[394743106,1763925041600,-213.892558,0.00013699,2]
[394743107,1763925041609,-213.892558,0.00013699,2]
[394743108,1763925041619,-213.892558,0.00013699,2]
[394743109,1763925041628,-213.892558,0.00013699,2]
[394743110,1763925041638,-213.892558,0.00013699,2]
[394743111,1763925041647,-213.892558,0.00013699,2]
[394743112,1763925041657,-213.892558,0.00013699,2]
[394743113,1763925041666,-213.892558,0.00013699,2]
[394743114,1763925041676,-213.892558,0.00013699,2]
[394743115,1763925041685,-213.892558,0.00013699,2]
[394743116,1763925041695,-506.42767,0.00013699,2]
[394743117,1763925041705,-506.42767,0.00013699,2]
[394743118,1763925041714,-506.42767,0.00013699,2]
[394743119,1763925041724,-506.42767,0.00013699,2]
[394743120,1763925041733,-506.42767,0.00013699,2]
[394743121,1763925041742,-506.42767,0.00013699,2]
[394743122,1763925041752,-506.42767,0.00013699,2]
[394743123,1763925041762,-506.42767,0.00013699,2]
[394743124,1763925041772,-506.42767,0.00013699,2]
[394743125,1763925041781,-506.42767,0.00013699,2]
[394743126,1763925041791,-506.42767,0.00013699,2]
[394743127,1763925041800,-506.42767,0.00013699,2]
[394743128,1763925041811,-506.42767,0.00013699,2]
[394743129,1763925041821,-506.42767,0.00013699,2]
[394743130,1763925041830,-506.42767,0.00013699,2]
[394743131,1763925041839,-506.42767,0.00013699,2]
[394743132,1763925041850,-151.0,0.00013699,2]
[394743133,1763925041859,-151.0,0.00013699,2]
[394743134,1763925041869,-429.629463,0.00013699,2]
[394743135,1763925041878,-151.0,0.00013699,2]
[394743136,1763925041888,-429.629463,0.00013699,2]
[394743137,1763925041898,-236.223368,0.00013699,2]
[394743138,1763925041906,-429.629463,0.00013699,2]
[394743139,1763925041915,-429.629463,0.00013699,2]
[394743140,1763925041924,-429.629463,0.00013699,2]
[394743141,1763925041933,-429.629463,0.00013699,2]
[394743142,1763925041942,-429.629463,0.00013699,2]
[394743143,1763925041951,-429.629463,0.00013699,2]
[394743144,1763925041960,-429.629463,0.00013699,2]
[394743145,1763925041970,-429.629463,0.00013699,2]
[394743146,1763925041979,-429.629463,0.00013699,2]
[394743147,1763925041988,-429.629463,0.00013699,2]
[394743148,1763925041996,-429.629463,0.00013699,2]
[394743149,1763925042005,-429.629463,0.00013699,2]
[394743150,1763925042016,-429.629463,0.00013699,2]
[394743151,1763925042027,-429.629463,0.00013699,2]
[394743152,1763925042036,-864.865066,0.00013699,2]
[394743153,1763925042045,-864.865066,0.00013699,2]
[394743154,1763925042055,-864.865066,0.00013699,2]
[394743155,1763925042064,-864.865066,0.00013699,2]
[394743156,1763925042073,-864.865066,0.00013699,2]
[394743157,1763925042082,-864.865066,0.00013699,2]
[394743158,1763925042092,-864.865066,0.00013699,2]
[394743159,1763925042101,-864.865066,0.00013699,2]
[394743160,1763925042110,-864.865066,0.00013699,2]
[394743161,1763925042119,-864.865066,0.00013699,2]
[394743162,1763925042128,-864.865066,0.00013699,2]
[394743163,1763925042138,-864.865066,0.00013699,2]
[394743164,1763925042147,-864.865066,0.00013699,2]
[394743165,1763925042156,-864.865066,0.00013699,2]
[394743166,1763925042165,-864.865066,0.00013699,2]
[394743167,1763925042174,-864.865066,0.00013699,2]
[394743168,1763925042184,-864.865066,0.00013699,2]
[394743169,1763925042193,-864.865066,0.00013699,2]
[394743170,1763925042202,-864.865066,0.00013699,2]
[394743171,1763925042211,-864.865057,0.00013699,2]
[394743172,1763925042220,-151.0,0.00013699,2]
[394743173,1763925042230,-151.0,0.00013699,2]
[394743174,1763925042240,-151.0,0.00013699,2]
[394743175,1763925042249,-151.0,0.00013699,2]
[394743176,1763925042258,-151.0,0.00013699,2]
[394743177,1763925042267,-151.0,0.00013699,2]
[394743178,1763925042276,-151.0,0.00013699,2]
[394743179,1763925042285,-151.0,0.00013699,2]
[394743180,1763925042294,-151.0,0.00013699,2]
[394743181,1763925042305,-151.0,0.00013699,2]
[394743182,1763925042314,-151.0,0.00013699,2]
[394743183,1763925042323,-151.0,0.00013699,2]
[394743184,1763925042332,-152.525564,0.00013699,2]
[394743185,1763925042342,-151.0,0.00013699,2]
[394743186,1763925042351,-151.0,0.00013699,2]
[394743187,1763925042360,-151.0,0.00013699,2]
[394743188,1763925042370,-151.0,0.00013699,2]
[394743189,1763925042380,-278.505726,0.00013699,2]
[394743190,1763925042389,-151.0,0.00013699,2]
[394743191,1763925042398,-151.0,0.00013699,2]
[394743192,1763925042407,-151.0,0.00013699,2]
[394743193,1763925042416,-151.0,0.00013699,2]
[394743194,1763925042425,-151.0,0.00013699,2]
[394743195,1763925042434,-151.0,0.00013699,2]
[394743196,1763925042443,-151.0,0.00013699,2]
[394743197,1763925042452,-151.0,0.00013699,2]
[394743198,1763925042461,-151.0,0.00013699,2]
[394743199,1763925042470,-151.0,0.00013699,2]
[394743200,1763925042480,-151.0,0.00013699,2]
[394743201,1763925042489,-151.0,0.00013699,2]
[394743202,1763925042498,-231.528175,0.00013699,2]
[394743203,1763925042507,-151.0,0.00013699,2]
[394743204,1763925042516,-151.0,0.00013699,2]
[394743205,1763925042525,-151.0,0.00013699,2]
[394743206,1763925042534,-151.0,0.00013699,2]
[394743207,1763925042543,-151.0,0.00013699,2]
[394743208,1763925042552,-151.0,0.00013699,2]
[394743209,1763925042561,-151.0,0.00013699,2]
[394743210,1763925042570,-151.0,0.00013699,2]
[394743211,1763925042579,-151.0,0.00013699,2]
[394743212,1763925042588,-151.0,0.00013699,2]
[394743213,1763925042598,-151.0,0.00013699,2]
[394743214,1763925042607,-151.0,0.00013699,2]
[394743215,1763925042616,-151.0,0.00013699,2]
[394743216,1763925042625,-151.0,0.00013699,2]
[394743217,1763925042635,-151.0,0.00013699,2]
[394743218,1763925042644,-192.789604,0.00013699,2]
[394743219,1763925042653,-151.0,0.00013699,2]
[394743220,1763925042662,-151.0,0.00013699,2]
[394743221,1763925042672,-151.0,0.00013699,2]
[394743222,1763925042681,-151.0,0.00013699,2]
[394743223,1763925042691,-151.0,0.00013699,2]
[394743224,1763925042700,-151.0,0.00013699,2]
[394743225,1763925042709,-151.0,0.00013699,2]
[394743226,1763925042718,-151.0,0.00013699,2]
[394743227,1763925042728,-255.562792,0.00013699,2]
[394743228,1763925042737,-151.0,0.00013699,2]
[394743229,1763925042746,-151.0,0.00013699,2]
[394743230,1763925042755,-3100.21234,0.00013699,2]
[394743231,1763925042764,-181.475353,0.00013699,2]
[394743232,1763925042774,-3100.21234,0.00013699,2]
[394743233,1763925042783,-3100.21234,0.00013699,2]
[394743234,1763925042792,-3100.21234,0.00013699,2]
[394743235,1763925042802,-3100.21234,0.00013699,2]
[394743236,1763925042811,-3100.21234,0.00013699,2]
[394743237,1763925042821,-3100.21234,0.00013699,2]
[394743238,1763925042830,-3100.21234,0.00013699,2]
[394743239,1763925042838,-3100.21234,0.00013699,2]
[394743240,1763925042848,-3100.21234,0.00013699,2]
[394743241,1763925042857,-303.648057,0.00013699,2]
[394743242,1763925042866,-3100.21234,0.00013699,2]
[394743243,1763925042875,-303.648057,0.00013699,2]
[394743244,1763925042885,-3100.21234,0.00013699,2]
[394743245,1763925042894,-303.648057,0.00013699,2]
[394743246,1763925042903,-3100.21234,0.00013699,2]
[394743247,1763925042912,-303.648057,0.00013699,2]
[394743249,1763925042921,-3100.21234,0.00013699,2]
[394743251,1763925042930,-303.648057,0.00013699,2]
[394743253,1763925042939,-3100.21234,0.00013699,2]
[394743255,1763925042948,-303.648057,0.00013699,2]
[394743257,1763925042957,-3100.21234,0.00013699,2]
[394743258,1763925042967,-303.648057,0.00013699,2]
[394743259,1763925042976,-3100.21234,0.00013699,2]
[394743260,1763925042985,-303.648057,0.00013699,2]
[394743261,1763925042994,-3100.21234,0.00013699,2]
[394743262,1763925043004,-303.648057,0.00013699,2]
[394743263,1763925043014,-3100.21234,0.00013699,2]
[394743264,1763925043025,-303.648057,0.00013699,2]
[394743265,1763925043034,-3100.212339,0.00013699,2]
[394743266,1763925043043,-303.648057,0.00013699,2]
[394743267,1763925043052,-303.648057,0.00013699,2]
[394743268,1763925043062,-303.648057,0.00013699,2]
[394743269,1763925043071,-303.648057,0.00013699,2]
[394743270,1763925043080,-303.648057,0.00013699,2]
[394743271,1763925043090,-303.648057,0.00013699,2]
[394743272,1763925043100,-303.648057,0.00013699,2]
[394743273,1763925043109,-303.648057,0.00013699,2]
[394743274,1763925043118,-303.648057,0.00013699,2]
[394743275,1763925043127,-303.648055,0.00013699,2]
[394743276,1763925043137,-1061.164575,0.00013699,2]
[394743277,1763925043146,-1061.164575,0.00013699,2]
[394743278,1763925043155,-1061.164575,0.00013699,2]
[394743279,1763925043164,-1061.164575,0.00013699,2]
[394743280,1763925043173,-1061.164575,0.00013699,2]
[394743281,1763925043182,-1061.164575,0.00013699,2]
[394743282,1763925043191,-1061.164575,0.00013699,2]
[394743283,1763925043200,-1061.164575,0.00013699,2]
[394743284,1763925043209,-1061.164575,0.00013699,2]
[394743285,1763925043218,-1061.164575,0.00013699,2]
[394743286,1763925043227,-1061.164575,0.00013699,2]
[394743287,1763925043237,-1061.164575,0.00013699,2]
[394743288,1763925043247,-500.0,0.00013699,2]
[394743289,1763925043256,-151.0,0.00013699,2]
[394743290,1763925043266,-151.0,0.00013699,2]
[394743291,1763925043276,-151.0,0.00013699,2]
[394743292,1763925043285,-151.0,0.00013699,2]
[394743293,1763925043295,-151.0,0.00013699,2]
[394743294,1763925043304,-166.5409,0.00013699,2]
[394743295,1763925043313,-151.0,0.00013699,2]
[394743296,1763925043322,-151.0,0.00013699,2]
[394743297,1763925043332,-151.0,0.00013699,2]
[394743298,1763925043341,-151.0,0.00013699,2]
[394743299,1763925043350,-151.0,0.00013699,2]
[394743300,1763925043359,-151.0,0.00013699,2]
[394743301,1763925043369,-151.0,0.00013699,2]
[394743302,1763925043378,-151.0,0.00013699,2]
[394743303,1763925043388,-151.0,0.00013699,2]
[394743304,1763925043397,-151.0,0.00013699,2]
[394743305,1763925043406,-151.0,0.00013699,2]
[394743306,1763925043416,-151.0,0.00013699,2]
[394743307,1763925043425,-151.0,0.00013699,2]
[394743308,1763925043434,-151.0,0.00013699,2]
[394743309,1763925043443,-151.0,0.00013699,2]
[394743310,1763925043452,-176.589625,0.00013699,2]
[394743311,1763925043462,-196.908389,0.00013699,2]
[394743312,1763925043471,-196.908389,0.00013699,2]
[394743313,1763925043480,-196.908389,0.00013699,2]
[394743314,1763925043489,-196.908389,0.00013699,2]
[394743315,1763925043498,-196.908389,0.00013699,2]
[394743316,1763925043507,-196.908389,0.00013699,2]
[394743317,1763925043516,-196.908389,0.00013699,2]
[394743318,1763925043525,-196.908383,0.00013699,2]
[394743319,1763925043535,-307.468839,0.00013699,2]
[394743320,1763925043544,-307.468839,0.00013699,2]
[394743321,1763925043553,-307.468839,0.00013699,2]
[394743322,1763925043562,-307.468839,0.00013699,2]
[394743323,1763925043570,-307.468839,0.00013699,2]
[394743324,1763925043580,-307.468839,0.00013699,2]
[394743326,1763925043589,-307.468839,0.00013699,2]
[394743327,1763925043597,-307.46883,0.00013699,2]
[394743328,1763925043606,-157.30481,0.00013699,2]
[394743329,1763925043615,-151.0,0.00013699,2]
[394743330,1763925043624,-242.391178,0.00013699,2]
[394743331,1763925043633,-307.11558,0.00013699,2]
[394743332,1763925043642,-307.11558,0.00013699,2]
[394743333,1763925043651,-307.11558,0.00013699,2]
[394743334,1763925043661,-307.115589,0.00013699,2]
[394743336,1763925043670,-151.0,0.00013699,2]
[394743338,1763925043679,-151.0,0.00013699,2]
[394743339,1763925043687,-151.0,0.00013699,2]
[394743340,1763925043697,-151.0,0.00013699,2]
[394743341,1763925043707,-151.0,0.00013699,2]
[394743342,1763925043716,-151.0,0.00013699,2]
[394743343,1763925043726,-195.756939,0.00013699,2]
[394743344,1763925043735,-195.756939,0.00013699,2]
[394743345,1763925043744,-195.756939,0.00013699,2]
[394743346,1763925043754,-195.756939,0.00013699,2]
[394743348,1763925043764,-195.756939,0.00013699,2]
[394743349,1763925043773,-195.756939,0.00013699,2]
[394743351,1763925043782,-195.756939,0.00013699,2]
[394743353,1763925043792,-195.756933,0.00013699,2]
[394743355,1763925043802,-288.138334,0.00013699,2]
[394743357,1763925043812,-288.138334,0.00013699,2]
[394743358,1763925043824,-288.138334,0.00013699,2]
[394743360,1763925043833,-288.138334,0.00013699,2]
[394743375,1763925043966,-288.138334,0.00013699,2]
[394743377,1763925043976,-288.138334,0.00013699,2]
[394743380,1763925043988,-288.138334,0.00013699,2]
[394743382,1763925043998,-288.13834,0.00013699,2]
[394743384,1763925044008,-151.0,0.00013699,2]
[394743386,1763925044021,-151.0,0.00013699,2]
[394743388,1763925044031,-443.686785,0.00013699,2]
[394743390,1763925044040,-443.686785,0.00013699,2]
[394743392,1763925044049,-443.686785,0.00013699,2]
[394743394,1763925044061,-443.686785,0.00013699,2]
[394743396,1763925044070,-443.686785,0.00013699,2]
[394743398,1763925044081,-443.686785,0.00013699,2]
[394743400,1763925044091,-443.686785,0.00013699,2]
[394743402,1763925044101,-443.686781,0.00013699,2]
[394743404,1763925044110,-191.707127,0.00013699,2]
[394743406,1763925044120,-191.707127,0.00013699,2]
[394743408,1763925044129,-191.707127,0.00013699,2]
[394743410,1763925044140,-191.707127,0.00013699,2]
[394743411,1763925044149,-191.707127,0.00013699,2]
[394743413,1763925044159,-191.707127,0.00013699,2]
[394743415,1763925044169,-191.707127,0.00013699,2]
[394743417,1763925044178,-191.707122,0.00013699,2]
[394743420,1763925044188,-151.0,0.00013699,2]
[394743421,1763925044198,-151.0,0.00013699,2]
[394743423,1763925044208,-151.0,0.00013699,2]
[394743425,1763925044218,-151.0,0.00013699,2]
[394743427,1763925044228,-287.600165,0.00013699,2]
[394743430,1763925044237,-520.906329,0.00013699,2]
[394743431,1763925044247,-520.906329,0.00013699,2]
[394743434,1763925044257,-520.906329,0.00013699,2]
[394743435,1763925044267,-520.906338,0.00013699,2]
[394743437,1763925044276,-243.722601,0.00013699,2]
[394743439,1763925044286,-243.722601,0.00013699,2]
[394743441,1763925044295,-243.722601,0.00013699,2]
[394743443,1763925044305,-243.72260207,0.00013699,2]
[394743445,1763925044315,-213.892558,0.00013699,2]
[394743447,1763925044324,-213.892558,0.00013699,2]
[394743449,1763925044333,-213.892558,0.00013699,2]
[394743451,1763925044343,-213.892549,0.00013699,2]
[394743453,1763925044352,-506.42767,0.00013699,2]
[394743456,1763925044363,-506.42767,0.00013699,2]
[394743457,1763925044372,-506.42767,0.00013699,2]
[394743459,1763925044383,-506.427662,0.00013699,2]
[394743461,1763925044392,-429.629463,0.00013699,2]
[394743463,1763925044401,-429.629463,0.00013699,2]
[394743465,1763925044411,-429.629463,0.00013699,2]
[394743467,1763925044420,-429.629463,0.00013699,2]
[394743470,1763925044430,-160.0,0.00013699,2]
[394743472,1763925044440,-1061.164575,0.00013699,2]
[394743474,1763925044453,-1061.164575,0.00013699,2]
[394743476,1763925044462,-1061.164575,0.00013699,2]
[394743478,1763925044472,-1061.164575,0.00013699,2]
[394743480,1763925044482,-1061.164575,0.00013699,2]
[394743482,1763925044491,-1061.164575,0.00013699,2]
[394743484,1763925044501,-1061.164575,0.00013699,2]
[394743486,1763925044510,-1061.164567,0.00013699,2]
[394743488,1763925044519,-225.18697532,0.00013705,2]
[394743490,1763925044529,-499.3,0.00013743,2]
[394743492,1763925044538,-500.0,0.00013824,2]
[394743494,1763925044547,-1176.94990461,0.00013886,2]
[394743496,1763925044557,-151.0,0.000139,2]
[394743498,1763925044566,-2000.0,0.00013971,2]
[394743500,1763925044575,-2000.0,0.00013971,2]
[394743502,1763925044585,-2000.0,0.00013971,2]
[394743504,1763925044595,-2000.0,0.00013971,2]
[394743506,1763925044604,-800.113,0.00013971,2]
[394743508,1763925044613,-555.416,0.00013972,2]
[394743510,1763925044623,-500.0,0.00013973,2]
[394743512,1763925044632,-1021.13693867,0.00014005,2]
[394743514,1763925044642,-1082.11436431,0.00014005,2]
[394743516,1763925044651,-1000.0,0.00014005,2]
[394743518,1763925044660,-432.0,0.00014073,2]
[394743520,1763925044669,-1000.0,0.00014081,2]
[394743522,1763925044678,-151.0,0.000141,2]
[394743524,1763925044687,-500.0,0.00014247,2]
[394743526,1763925044698,-260.0,0.00014247,2]
[394743528,1763925044708,-233.51889341,0.00014253,2]
[394743530,1763925044717,-151.0,0.000143,2]
[394743532,1763925044727,-250.0,0.00014462,2]
[394743534,1763925044736,-250.0,0.00014462,2]
[394743536,1763925044745,-250.0,0.00014462,2]
[394743538,1763925044754,-250.0,0.00014462,2]
[394743540,1763925044763,-250.0,0.00014462,2]
[394743542,1763925044772,-250.0,0.00014462,2]
[394743544,1763925044781,-250.0,0.00014462,2]
[394743546,1763925044790,-250.0,0.00014462,2]
[394743548,1763925044799,-250.0,0.00014462,2]
[394743550,1763925044810,-250.0,0.00014462,2]
[394743552,1763925044819,-250.0,0.00014462,2]
[394743554,1763925044828,-500.0,0.0001452,2]
[394743556,1763925044838,-500.0,0.0001452,2]
[394743558,1763925044847,-500.0,0.0001452,2]
[394743560,1763925044857,-500.0,0.0001452,2]
[394743562,1763925044865,-500.0,0.00014521,2]
[394743564,1763925044875,-15032.61642275,0.00014521,2]
[394743565,1763925045188,-49130.90602625,0.00014521,2]
[394743566,1763925045198,-968.7831424,0.00014553,2]
[394743567,1763925045208,-500.0,0.00014583,2]
[394743568,1763925045217,-4492.0,0.00014621,2]
[394743569,1763925045226,-1000.0,0.0001464,2]
[394743570,1763925045236,-244.0,0.0001464,2]
[394743571,1763925045245,-4492.0,0.00014644,2]
[394743572,1763925045255,-4492.0,0.00014661,2]
[394743573,1763925045264,-4492.0,0.00014738,2]
[394743574,1763925045274,-805.2970336,0.00014755,2]
[394743575,1763925045284,-63.70038967,0.00014755,2]
[394743576,1763925045296,-741.59664403,0.00014755,2]
[394743577,1763925045306,-4492.0,0.00014762,2]
[394743578,1763925045316,-500.0,0.00014795,2]
[394743579,1763925045325,-360.0,0.00014795,2]
[394743580,1763925045335,-4492.0,0.000148,2]
[394743581,1763925045344,-188.87810898,0.00014801,2]
[394743582,1763925045353,-4492.0,0.00014823,2]
[394743583,1763925045362,-4492.0,0.00014823,2]
[394743584,1763925045372,-4492.0,0.0001487,2]
[394743585,1763925045381,-379.697,0.000149,2]
[394743586,1763925045390,-183.731,0.000149,2]
[394743587,1763925045400,-4492.0,0.0001493,2]
[394743588,1763925045409,-500.0,0.00014999,2]
[394743589,1763925045418,-500.0,0.00014999,2]
[394743590,1763925045428,-12038.92593662,0.00015,2]
[394743591,1763925045437,-204.57396776,0.00015027,2]
[394743592,1763925045447,-161.45078453,0.00015027,2]
[394743593,1763925045457,-200.0,0.00015027,2]
[394743594,1763925045466,-308.27153423,0.00015027,2]
[394743595,1763925045475,-200.0,0.00015027,2]
[394743596,1763925045484,-100000.0,0.00015028,2]
[394743597,1763925045494,-391.64079085,0.00015066,2]
[394743598,1763925045503,-500.0,0.00015068,2]
[394743599,1763925045512,-284.852139,0.00015068,2]
[394743600,1763925045522,-800.0,0.00015068,2]
[394743602,1763925045530,-2164.86370393,0.0001509,2]
[394743604,1763925045540,-500.0,0.0001512,2]
[394743606,1763925045548,-179.686056,0.00015133,2]
[394743608,1763925045558,-179.686056,0.00015133,2]
[394743610,1763925045567,-166.1396564,0.00015133,2]
[394743612,1763925045576,-4492.0,0.00015158,2]
[394743614,1763925045585,-4492.0,0.00015198,2]
[394743616,1763925045594,-4492.0,0.00015212,2]
[394743618,1763925045604,-761.9732343,0.00015265,2]
[394743620,1763925045613,-500.0,0.0001528,2]
[394743622,1763925045622,-500.0,0.0001528,2]
[394743623,1763925045630,-292.06825785,0.0001528,2]
[394743626,1763925045640,-500.0,0.0001528,2]
[394743628,1763925045650,-500.0,0.0001528,2]
[394743629,1763925045659,-504.3135522,0.0001528,2]
[394743631,1763925045669,-500.0,0.0001528,2]
[394743633,1763925045679,-500.0,0.0001528,2]
[394743635,1763925045688,-500.0,0.0001528,2]
[394743637,1763925045697,-460.0,0.00015342,2]
[394743639,1763925045706,-500.0,0.00015342,2]
[394743640,1763925045715,-673.0,0.00015397,2]
[394743643,1763925045724,-500.0,0.00015514,2]
[394743644,1763925045734,-507.59025667,0.00015521,2]
[394743646,1763925045743,-630.0,0.00015552,2]
[394743648,1763925045753,-989.0,0.00015552,2]
[394743650,1763925045763,-2152.0,0.00015552,2]
[394743652,1763925045772,-295.09553755,0.00015564,2]
[394743654,1763925045781,-673.0,0.00015584,2]
[394743673,1763925045935,-464.14,0.00015616,2]
[394743674,1763925045945,-228.04117173,0.00015685,2]
[394743676,1763925045955,-673.0,0.00015718,2]
[394743678,1763925045964,-170.0192098,0.00015757,2]
[394743680,1763925045973,-929.59951479,0.00015828,2]
[394743682,1763925045983,-189.02880096,0.00015828,2]
[394743684,1763925045992,-1000.0,0.00015828,2]
[394743686,1763925046002,-1000.0,0.00015828,2]
[394743688,1763925046011,-1000.0,0.00015828,2]
[394743690,1763925046024,-1006.33799268,0.00015828,2]
[394743692,1763925046034,-560.0,0.0001589,2]
[394743694,1763925046043,-673.0,0.00015997,2]
[394743696,1763925046053,-214.67281397,0.00016,2]
[394743698,1763925046063,-3000.0,0.00016,2]
[394743700,1763925046073,-3000.0,0.0001601,2]
[394743702,1763925046082,-3000.0,0.0001602,2]
[394743704,1763925046093,-3000.0,0.0001603,2]
[394743706,1763925046103,-3000.0,0.0001604,2]
[394743708,1763925046111,-3000.0,0.0001605,2]
[394743710,1763925046121,-3000.0,0.0001606,2]
[394743712,1763925046130,-3000.0,0.0001607,2]
[394743714,1763925046138,-673.0,0.00016079,2]
[394743716,1763925046147,-3000.0,0.0001608,2]
[394743718,1763925046157,-3000.0,0.0001609,2]
[394743720,1763925046166,-3000.0,0.000161,2]
[394743722,1763925046176,-1000.0,0.00016104,2]
[394743724,1763925046185,-492.0,0.00016104,2]
[394743726,1763925046194,-3928.204843,0.0001611,2]
[394743728,1763925046204,-673.0,0.00016142,2]
[394743730,1763925046214,-1600.0,0.00016164,2]
[394743732,1763925046224,-360.35764605,0.00016165,2]
[394743734,1763925046233,-180.18,0.00016177,2]
[394743736,1763925046243,-500.0,0.00016216,2]
[394743738,1763925046251,-673.0,0.00016234,2]
[394743740,1763925046261,-673.0,0.00016277,2]
[394743742,1763925046270,-151.0,0.000163,2]
[394743744,1763925046279,-38000.0,0.0001635,3]
[394743746,1763925046288,-38000.0,0.00016359,3]
[394743748,1763925046298,-38000.0,0.00016368,3]
[394743750,1763925046307,-279.5,0.00016373,2]
[394743752,1763925046316,-500.0,0.00016373,2]
[394743755,1763925046327,-500.0,0.00016373,2]
[394743757,1763925046336,-500.0,0.00016373,2]
[394743759,1763925046346,-500.0,0.00016373,2]
[394743761,1763925046355,-500.0,0.00016373,2]
[394743763,1763925046364,-500.0,0.00016373,2]
[394743765,1763925046374,-572.25240913,0.00016373,2]
[394743767,1763925046383,-400.0,0.00016373,2]
[394743769,1763925046392,-500.0,0.00016373,2]
[394743771,1763925046401,-500.0,0.00016373,2]
[394743773,1763925046410,-500.0,0.00016373,2]
[394743775,1763925046419,-500.0,0.00016373,2]
[394743776,1763925046428,-500.0,0.00016373,2]
[394743778,1763925046437,-1500.0,0.00016376,2]
[394743780,1763925046446,-500.0,0.00016376,2]
[394743782,1763925046455,-500.0,0.00016376,2]
[394743784,1763925046464,-38000.0,0.00016376,3]
[394743787,1763925046474,-38000.0,0.00016385,3]
[394743789,1763925046483,-200.0,0.00016393,2]
[394743791,1763925046493,-38000.0,0.00016394,3]
[394743793,1763925046502,-38000.0,0.00016394,3]
[394743795,1763925046512,-2000.0,0.000164,2]